Cogmind - Beta 13 @@@ ROGUE MODE // 2024.04.05 @ 13:59:14 Player: Adrian Barbobot Result: Destroyed by G-47 Trooper with Particle Gun Performance ------------- Evolutions (2) 1000 Regions Visited (4) 800 Robots Destroyed (60) 300 Value Destroyed (1128) 1128 Prototype IDs (4) 80 Alien Tech Used (0) 0 Bonus (0) 0 TOTAL SCORE: 3308 Bonus ------- None Cogmind --------- Core Integrity 0/550 Matter 145/300 Energy 100/100 System Corruption 0% Temperature Cool (27) Movement Core (700) Ox13 Location -8/Materials Parts ------- > --- POWER (5) -------- (None) > --- PROPULSION (7) --- (None) > --- UTILITY (7) ------ High-capacity Storage Unit > --- WEAPON (5) ------- (None) > --- INVENTORY (20) --- (None) Peak State ------------ > --- POWER ------------ Ion Engine Improved Ion Engine Heavy Ion Engine Cooled Ion Engine > --- PROPULSION ------- Carbon-fiber Leg Flight Unit Flight Unit Flight Unit Flight Unit Flight Unit > --- UTILITY ---------- Heat Sink High-capacity Storage Unit Weight Redist. System Sensor Array Seismic Detector Salvage Targeting Computer > --- WEAPON ----------- Improved EM Shotgun Shock Rifle Medium Laser Light EM Pulse Cannon Mini Grenade Launcher > --- INVENTORY -------- (None) [Rating: 36] Favorites ----------- Power Cooled Ion Engine Engine Cooled Ion Engine Propulsion Flight Unit Treads Light Treads Leg Aluminum Leg Flight Unit Flight Unit Utility High-capacity Storage Unit Device Heat Sink Storage High-capacity Storage Unit Processor Salvage Targeting Computer Protection Light Armor Plating Weapon Improved EM Shotgun Energy Gun Improved EM Shotgun Energy Cannon Particle Cannon Ballistic Gun Heavy Assault Rifle Launcher Rocket Launcher Special Weapon Plasma Cutter Build | -11 -10 -10 -9 -8 ------- Run | Yrd Mat Min Mat Mat Slots Evolved 17 | . . . 15 2 Power 4 | . . . 4 . Propulsion 5 | . . . 4 1 Utility 5 | . . . 4 1 Weapon 3 | . . . 3 . Parts Attached 67 | 10 4 1 50 2 Power 12 | 2 1 . 9 . Engine 12 | 2 1 . 9 . Core . | . . . . . Reactor . | . . . . . Propulsion 17 | 2 . . 14 1 Treads 2 | . . . 2 . Leg 8 | 2 . . 5 1 Wheel . | . . . . . Hover . | . . . . . Flight 7 | . . . 7 . Utility 16 | 3 1 1 11 . Device 7 | 1 . 1 5 . Storage 4 | 2 1 . 1 . Processor 2 | . . . 2 . Hackware . | . . . . . Protection 3 | . . . 3 . Artifact . | . . . . . Weapon 22 | 3 2 . 16 1 Energy Gun 12 | 2 1 . 8 1 Energy Cannon 3 | . . . 3 . Ballistic Gun 4 | 1 1 . 2 . Ballistic Cannon . | . . . . . Launcher 2 | . . . 2 . Special Weapon 1 | . . . 1 . Impact Weapon . | . . . . . Slashing Weapon . | . . . . . Piercing Weapon . | . . . . . Special Melee Weapon . | . . . . . Unidentified Prototypes 4 | . 1 1 2 . Parts Lost 28 | . . . 8 20 Power 6 | . . . 1 5 Propulsion 7 | . . . 1 6 Utility 8 | . . . 4 4 Weapon 7 | . . . 2 5 Highest Loss Streak 13 | . . . 4 13 To Critical Strikes . | . . . . . Average Slot Usage (%) 84 | . 99 100 78 65 Engine 15 | . 14 14 17 12 Leg 12 | . 28 28 4 1 Flight 8 | . . . 13 13 Device 11 | . 14 14 9 14 Storage 9 | . 14 14 7 4 Processor 1 | . . . 1 3 Protection 1 | . . . 3 . Energy Gun 11 | . 13 14 9 6 Energy Cannon 1 | . . . 2 3 Ballistic Gun 7 | . 14 14 4 . Naked Turns . | . . . . . Heaviest Build 96 | 18 52 52 96 89 Greatest Support 60 | 20 20 20 60 26 Greatest Overweight (x) 18 | 3 2 2 5 18 Average Overweight (x) 1 | . . 2 3 5 Largest Inventory Capacity 20 | 8 20 20 20 20 Average Capacity 17 | 7 11 20 20 20 Most Carried 10 | 5 10 10 9 2 Average Carried 3 | 1 7 9 1 . Final Capacity 20 | 8 20 20 20 20 Final Carried 10 | 1 10 10 . . Class Distribution -------------------- 41% | Mutant 38% | Scavenger-Tank 6% | Skirmisher 6% | Scavenger-Skirmisher 4% | Tank Dominant Class ---------------- Mutant | -10/Materials Mutant | -10/Mines Scavenger-Tank | -9/Materials Scavenger-Skirmisher | -8/Materials Resources | -11 -10 -10 -9 -8 ----------- Run | Yrd Mat Min Mat Mat Matter Collected 1511 | 347 229 31 904 . Remotely 240 | . . . 240 . Salvage Created 1874 | 228 347 72 937 290 Parts 129 | 18 23 5 65 18 Haulers Intercepted 1 | . . . 1 . Recyclers Shooed 4 | . 1 2 . 1 Parts Field Recycled . | . . . . . Retrieved Matter . | . . . . . Parts Self-Destructed . | . . . . . Prevented . | . . . . . Kills | -11 -10 -10 -9 -8 ------- Run | Yrd Mat Min Mat Mat Combat Hostiles Destroyed 30 | . 6 . 19 5 Guns 17 | . 4 . 13 . Cannons 5 | . . . 4 1 AOE 8 | . 2 . 2 4 Classes Destroyed 11 | 3 3 . 5 . Worker 9 | 2 2 2 2 1 Builder 7 | . 2 . 2 3 Tunneler 5 | 4 . 1 . . Hauler 1 | . . . 1 . Recycler 3 | 1 1 . 1 . Mechanic 1 | . . . 1 . Operator 2 | . . . 1 1 Watcher 2 | . . . 2 . Swarmer 10 | . 3 . 7 . Grunt 16 | . 3 . 8 5 Sentry 4 | . . . 4 . Best Kill Streak 8 | 4 5 2 7 8 Combat Bots Only 5 | . 3 . 4 5 Max Kills in Single Turn 2 | 1 2 1 2 2 Gunslinging 1 | . . . 1 . Exploded 2 | . 2 . 1 1 Melee . | . . . . . Uniques/NPCs Destroyed . | . . . . . Combat | -11 -10 -10 -9 -8 -------- Run | Yrd Mat Min Mat Mat Hostile Shots Fired 210 | . 18 . 115 77 Missed 42 | . 4 . 19 19 Damage Taken 2942 | 15 197 . 1478 1252 Core 931 | 8 37 . 333 553 Absorbed by Shields . | . . . . . Core Remaining (%) 64 | 96 . 82 16 . Volleys Fired 104 | 10 22 7 49 16 Largest 5 | 2 2 2 5 5 Hottest 249 | 70 70 68 249 231 Shots Fired 292 | 20 44 14 168 46 Gun 223 | 20 44 14 124 21 Cannon 54 | . . . 38 16 Launcher 15 | . . . 6 9 Special . | . . . . . Kinetic 85 | 10 22 7 46 . Thermal 89 | 10 2 . 68 9 Explosive 15 | . . . 6 9 Electromagnetic 103 | . 20 7 48 28 Robot Hit Streak 8 | 6 8 4 7 4 Robot Miss Streak 8 | 1 5 3 8 3 Penetration Max . | . . . . . Secondary Targets 2 | . . . 2 . Max Gunslinging Chain 1 | . . . 1 . Shots Hit Robots 129 | 10 25 8 61 25 Core Hits 91 | 12 13 3 42 21 Critical Kills . | . . . . . Critical Parts Destroyed . | . . . . . Critical Strikes 4 | 1 . . 1 2 Burn 2 | 1 . . . 1 Corrupt 2 | . . . 1 1 Melee Attacks . | . . . . . Impact . | . . . . . Slashing . | . . . . . Piercing . | . . . . . Sneak Attacks . | . . . . . Combat Hostiles . | . . . . . Follow-up Attacks . | . . . . . Damage Inflicted 3145 | 144 558 136 1374 933 Guns 1492 | 106 378 136 696 176 Cannons 561 | . . . 329 232 Explosions 1054 | . 180 . 349 525 Melee . | . . . . . Ramming 38 | 38 . . . . Kinetic 437 | 31 180 31 195 . Thermal 951 | 75 192 . 508 176 Explosive 681 | . . . 282 399 Electromagnetic 1038 | . 186 105 389 358 Impact . | . . . . . Slashing . | . . . . . Piercing . | . . . . . Highest Corruption 6 | . . . 6 . Average Corruption 6 | . . . 6 . Corruption Purged . | . . . . . Corruption Blocked . | . . . . . Effects 32 | . . . 32 . Message Errors 6 | . . . 6 . Matter Fused 7 | . . . 7 . Heat Flow Errors 4 | . . . 4 . Energy Discharges 6 | . . . 6 . Parts Rejected 1 | . . . 1 . Parts Fused 1 | . . . 1 . Data Loss (minor) 3 | . . . 3 . Data Loss (major) 1 | . . . 1 . Alerts 2 | . . . 2 . Weapon Failures 1 | . . . 1 . Overload Shots . | . . . . . Overflow Damage 56 | . . . . 56 Projectiles . | . . . . . Explosions 56 | . . . . 56 Melee . | . . . . . Knockbacks . | . . . . . Impact . | . . . . . Kinetic . | . . . . . Secondary . | . . . . . Self-Inflicted Damage 312 | 15 69 . 81 147 Shots 9 | . 2 . 3 4 Rammed 11 | 11 . . . . Targets Rammed 11 | 11 . . . . Kicked . | . . . . . Crushed . | . . . . . Highest Temperature 1302 | 70 90 12 1302 778 Average Temperature 282 | 26 26 5 326 315 Received Heat Transfer 804 | . 42 . 240 522 Effects 200 | . . . 171 29 Shutdowns 73 | . . . 62 11 Energy Bleed 15 | . . . 14 1 Interference 23 | . . . 18 5 Matter Decay 15 | . . . 12 3 Short Circuit 17 | . . . 12 5 Damage (minor) 13 | . . . 13 . Damage (major) 40 | . . . 37 3 Damage (core) 4 | . . . 3 1 Siege Activations . | . . . . . Robots Corrupted . | . . . . . Combat Hostiles . | . . . . . Parts Fried 1 | . . . . 1 Impact Corruptions . | . . . . . Robots Melted . | . . . . . Combat Hostiles . | . . . . . Parts Melted 4 | 2 . . 2 . Heat Transferred 1980 | 296 287 . 1025 372 Parts Sabotaged . | . . . . . Parts Stolen . | . . . . . Parts Stripped . | . . . . . Power Chain Reactions 6 | . 2 . 2 2 Alert | -11 -10 -10 -9 -8 ------- Run | Yrd Mat Min Mat Mat Peak Influence 338 | 35 179 15 338 212 Initial 78 | . 22 . 5 78 Average 121 | 15 58 5 191 128 Maximum Alert Level 1 | . . . 1 1 Low Security (%) 78 | 100 100 100 58 91 Level 1 21 | . . . 41 8 Level 2 . | . . . . . Level 3 . | . . . . . Level 4 . | . . . . . Level 5 . | . . . . . High Security . | . . . . . Max Security . | . . . . . Squads Dispatched 6 | . 2 . 3 1 Investigation 4 | . 2 . 2 . Extermination . | . . . . . Reinforcement 2 | . . . 1 1 Assault . | . . . . . Garrison . | . . . . . Intercept . | . . . . . Searches Triggered . | . . . . . Construction Impeded 1 | . . . 1 . Haulers Reinforced . | . . . . . Active Scanning Responses . | . . . . . Cargo Convoy Interrupts . | . . . . . Stealth | -11 -10 -10 -9 -8 --------- Run | Yrd Mat Min Mat Mat Distress Signals 8 | . . . 7 1 Communications Jammed . | . . . . . Distress Signals . | . . . . . Times Spotted 55 | . 9 . 34 12 Peak Tracking Total 6 | . 3 . 6 4 Tactical Retreats 3 | . . . 3 . Traps | -11 -10 -10 -9 -8 ------- Run | Yrd Mat Min Mat Mat Traps Triggered 1 | . 1 . . . Indirectly . | . . . . . Trap Hack Attempts . | . . . . . Triggered . | . . . . . Disarmed . | . . . . . Reprogrammed . | . . . . . Reused . | . . . . . Traps Extracted . | . . . . . Installed . | . . . . . Triggered . | . . . . . Machines | -11 -10 -10 -9 -8 ---------- Run | Yrd Mat Min Mat Mat Machines Disabled 5 | . 2 . 3 . Max in Single Turn 1 | . 1 . 1 . Machines Repaired . | . . . . . Machines Dismantled . | . . . . . Machines Sabotaged . | . . . . . Overloaded Fab Kills . | . . . . . Hacking | -11 -10 -10 -9 -8 --------- Run | Yrd Mat Min Mat Mat Machines Accessed 5 | . 3 . 2 . Terminals 3 | . 2 . 1 . Fabricators . | . . . . . Repair Stations . | . . . . . Recycling Units 1 | . 1 . . . Scanalyzers 1 | . . . 1 . Garrison Access . | . . . . . Total Hacks 23 | . 14 . 9 . Successful 18 | . 11 . 7 . Failed 5 | . 3 . 2 . Catastrophic . | . . . . . Database Lockouts . | . . . . . Manual . | . . . . . Terminals 12 | . 9 . 3 . Fabricators . | . . . . . Repair Stations . | . . . . . Recycling Units 5 | . 5 . . . Scanalyzers 6 | . . . 6 . Garrison Access . | . . . . . Terminal Hacks 8 | . 7 . 1 . Record 2 | . 2 . . . Robot Analysis 1 | . 1 . . . Emergency Access Points 1 | . 1 . . . Alert Level 1 | . 1 . . . Unreport Threat 1 | . 1 . . . Dispatch Records 1 | . 1 . . . Maintenance Status 1 | . . . 1 . Fabricator Hacks . | . . . . . Repair Station Hacks . | . . . . . Recycling Unit Hacks 4 | . 4 . . . Recycle Component 1 | . 1 . . . Process 1 | . 1 . . . Retrieve Matter 1 | . 1 . . . Retrieve Components 1 | . 1 . . . Scanalyzer 6 | . . . 6 . Insert Component 2 | . . . 2 . Analyze 4 | . . . 4 . Garrison Access Hacks . | . . . . . Unauthorized Hacks . | . . . . . Terminals . | . . . . . Fabricators . | . . . . . Repair Stations . | . . . . . Recycling Units . | . . . . . Scanalyzers . | . . . . . Garrison Access . | . . . . . Data Cores Recovered . | . . . . . Used . | . . . . . Hacking Detections 5 | . 3 . 2 . Full Trace Events 4 | . 2 . 2 . Feedback Events . | . . . . . Feedback Blocked . | . . . . . Robot Schematics Acquired . | . . . . . Robots Built . | . . . . . Authchips . | . . . . . Time . | . . . . . Total Robot Build Rating . | . . . . . Part Schematics Acquired 2 | . . . 2 . Parts Built . | . . . . . Authchips . | . . . . . Time . | . . . . . Total Part Build Rating . | . . . . . Parts Repaired . | . . . . . Time . | . . . . . Parts Recycled 1 | . 1 . . . Recycled Matter 55 | . 55 . . . Retrieved Matter 55 | . 55 . . . Retrieved Components 1 | . 1 . . . Parts Scanalyzed 2 | . . . 2 . Part Schematics Acquired 2 | . . . 2 . Parts Damaged . | . . . . . Bothacking | -11 -10 -10 -9 -8 ------------ Run | Yrd Mat Min Mat Mat Used RIF Installer . | . . . . . Robots Hacked . | . . . . . Non-combat . | . . . . . Combat . | . . . . . Robot Hacks Applied . | . . . . . Relay Couplers Released . | . . . . . Fabnet Peak Effective % . | . . . . . Robots Rewired . | . . . . . Allies Hacked . | . . . . . Hacks Repelled . | . . . . . Allies | -11 -10 -10 -9 -8 -------- Run | Yrd Mat Min Mat Mat Total Allies . | . . . . . Largest Group . | . . . . . Highest-Rated Group . | . . . . . Highest-Rated Ally . | . . . . . Total Orders . | . . . . . Ally Attacks . | . . . . . Total Damage . | . . . . . Kills . | . . . . . Allies Corrupted . | . . . . . Allies Melted . | . . . . . Intel | -11 -10 -10 -9 -8 ------- Run | Yrd Mat Min Mat Mat Robot Analysis Total 1 | . 1 . . . Derelict Logs Recovered 2 | . . 2 . . Drone Launches . | . . . . . Drone Recoveries . | . . . . . Exploration | -11 -10 -10 -9 -8 ------------- Run | Yrd Mat Min Mat Mat Turns Passed 2587 | 189 501 365 1338 194 Spaces Moved 853 | 118 265 131 303 36 Core 42 | 37 . . . 5 Treads 6 | . . . 6 . Legs 564 | 81 265 131 87 . Wheels . | . . . . . Hover . | . . . . . Flight 241 | . . . 210 31 Fastest Speed 50 | 50 120 260 190 268 Average Speed 240 | 103 146 260 345 412 Slowest Speed 1330 | 200 260 260 431 1330 Overloaded Moves . | . . . . . Propulsion Burnouts . | . . . . . Robots Hopped . | . . . . . Cave-ins Triggered 1 | . . . 1 . Exploration Rate (%) 23 | 5 37 33 36 7 Regions Visited 4 Branch Regions 1 Pre-discovered Areas 1 | . . 1 . . Known Exits Taken . | . . . . . Unknown Exits Taken 4 | 1 1 1 1 . Scrap Searched 1 | . . 1 . . Spaces Dug 8 | . . . 8 . Terrain Destroyed 98 | . 2 . 47 49 Melee . | . . . . . Projectile . | . . . . . AOE 98 | . 2 . 47 49 Terrain Rammed . | . . . . . Walls Destroyed . | . . . . . Machines Disabled . | . . . . . Actions | -11 -10 -10 -9 -8 --------- Run | Yrd Mat Min Mat Mat Total 1203 | 169 337 144 497 56 Wait 48 | 5 21 . 22 . Move 849 | 117 264 130 302 36 Hop . | . . . . . Pick Up 75 | 11 18 3 41 2 Fast Attach 1 | 1 . . . . Attach 60 | 8 1 . 49 2 Detach 5 | 1 . . 4 . Swap 6 | 1 3 1 1 . Drop 44 | 4 8 3 29 . Fire 104 | 10 22 7 49 16 Melee . | . . . . . Ram 11 | 11 . . . . Kick . | . . . . . Crush . | . . . . . Escape Stasis . | . . . . . Rewire . | . . . . . Trap . | . . . . . Miscellaneous . | . . . . . Route ------- -11/Scrapyard -10/Materials -10/Mines -9/Materials (discovered 3 exits: [*Mat] / [*Min x2]) -8/Materials History --------- Turn | Location | Event 22 | -11/Scrapyard | Discovered new exit (range 15) 190 | -11/Scrapyard | Entered Materials 300 | -10/Materials | Build established: Mutant 459 | -10/Materials | Discovered new exit (range 13) 691 | -10/Materials | Entered Mines 756 | -10/Mines | Met a Derelict bent on vengeance 798 | -10/Mines | Learned Materials stockpile data 828 | -10/Mines | Found a damaged Exp. Sensor Array with a note attached 833 | -10/Mines | Found Prototype Device 834 | -10/Mines | Identified Exp. Sensor Array 899 | -10/Mines | Learned location of Zion (-7) 995 | -10/Mines | Received a Rocket Launcher from a helpful Derelict 1023 | -10/Mines | Discovered new exit (range 15) 1056 | -10/Mines | Entered Materials 1056 | -9/Materials | Evolved 15 slots: Power x4, Propulsion x4, Utility x4, Weapon x3 1238 | -9/Materials | Crushed by falling debris 1293 | -9/Materials | Lost 4 parts (1n3u) 1429 | -9/Materials | Discovered new exit (range 7) 1433 | -9/Materials | Core integrity fell below 50% 1443 | -9/Materials | Lost 3 parts (1p1u1w) 1494 | -9/Materials | Discovered new exit (range 16) 1730 | -9/Materials | Build established: Scavenger-Tank 2014 | -9/Materials | Core integrity fell below 20% 2130 | -9/Materials | Discovered new exit (range 14) 2394 | -9/Materials | Entered another Materials area 2394 | -8/Materials | Evolved 2 slots: Propulsion x1, Utility x1 2533 | -8/Materials | Lost 6 parts (2p3n1w) 2569 | -8/Materials | Core integrity fell below 50% 2581 | -8/Materials | Core integrity fell below 20% 2588 | -8/Materials | Destroyed by G-47 Trooper with Particle Gun Last Messages --------------- R-06 Scavenger collects Welding Torch. U-05 Engineer builds a Wall. M-28 Smith repairs Welding Torch. U-05 Engineer lays Concrete. Broken Sensor Array destroyed. Mni. Grenade Launcher destroyed. Hvy. Ion Engine destroyed. Critical hit (Burn: +37). U-05 Engineer lays Concrete. Broken Salvage Targeting Computer severed. U-05 Engineer lays Concrete. Critical hit (Burn: +37). U-05 Engineer lays Concrete. Slug penetrates Wall. Terminal disabled. U-05 Engineer lays Concrete. U-05 Engineer builds a Wall. U-05 Engineer lays Concrete. U-05 Engineer builds a Wall. Critical hit (Burn: +37). Map ----- +----------------------------------------------------+ | ?????????????????????????????????????????????????? | | ?????????????????????????????????????????????????? | | ?????????????????????????????????????????????????? | | ?????????????????????????????????????????????????? | | ?????????????????????????????????????????????????? | | ?????????????????????????????????????????????????? | | ?????????????????????????????????????????????????? | | ??????????????????????????##########?????????????? | | ??????????????????????????# #??????#??????? | | ??????????????????????????# #?####+##?????? | | ??????????????????????????# # ??????? | | ?????????????????????????## # ???????? | | ??????????????????????????+ + ? T"????? | | ??????????????????????????# # """ ""#???? | | ??????????????????????????# # """ #???? | | ??????????????????????#?### # """ #???? | | ?????????????????????## # # # #???? | | ????????????????????## # ####+### #???? | | ?????????????? ##### u ###+########### | | ????????????? m% ah # | | ????????????? % # | | ????????????? %% # | | ????????????????###### #+## ## #######+#### | | ????????????????????# * ##### #??????????? | | ????????????????????## l ####???# #??????????? | | ????????????????????## @ ##??????# #??????????? | | ?????????????????????# / g[ #???????# #??????????? | | ?????????????????????# *!g#???????# #??????????? | | ?????????????????????# *! #???????# #??????????? | | ?????????????????????# #???????? ???????????? | | ?????????????????????# #???????? ???????????? | | ?????????????????????# #???????? ???????????? | | ?????????????????????+ "" #???????? ???????????? | | ?????????????????????# T" #???????? ???????????? | | ?????????????????????# "" #???????? ???????????? | | ?????????????????????# #???????? ???????????? | | ?????????????????????####??##????????????????????? | | ?????????????????????????????????????????????????? | | ?????????????????????????????????????????????????? | | ?????????????????????????????????????????????????? | | ?????????????????????????????????????????????????? | | ?????????????????????????????????????????????????? | | ?????????????????????????????????????????????????? | | ?????????????????????????????????????????????????? | | ?????????????????????????????????????????????????? | | ?????????????????????????????????????????????????? | | ?????????????????????????????????????????????????? | | ?????????????????????????????????????????????????? | | ?????????????????????????????????????????????????? | | ?????????????????????????????????????????????????? | +----------------------------------------------------+ Best States ------------- Heat Dissipation 41 Energy Generation 44 Energy Capacity 955 Matter Stores 450 Matter Capacity 450 Sight Range 16 Robot Scan Range 20 Terrain Scan Range 16 Terrain Scan Density 10 Additional Mass Support 6 Armor Coverage 150 Evasion (%) 55 Recoil Reduction 2 Salvage Targeting 1 Item Schematics ----------------- Plasma Cutter | -9/Materials | Scanalyzed Cld. Ion Engine | -9/Materials | Scanalyzed Robot Schematics ------------------ None Fabricated ------------ Nothing Alien Tech Used ----------------- None Achievements -------------- Risk Taker Unlikely Earthworm Use The Force Challenges ------------ None Game ------ Seed PhysicsStealthBeam Manual? 0 Play Time 00:41:11 Cumulative 1.2 hours Start 2024.04.05 @ 13:04:17 End 2024.04.05 @ 13:59:14 Sessions 1 Manual Loads 0 Difficulty Rogue Special Mode None Game No. 5 Rogue 5 Adventurer 0 Explorer 0 Win Type - Total 0 Types 0/0/0/0/0/0/0/0/0 Lore% 1 Gallery% 4 Achievement% 5 Wizard Run 0 Options --------- Layout 1 ASCII 0 Keyboard 0 Movement Mouse Keybinds 0 Fullscreen 1 Font 24/Smallcaps Map View 50x35 Zoom Use 0% Tactical HUD 0 Map Filters NONE Filters NONE Steam 1 RUN: 76359c7d-0a3b-447e-abaa-abe3db1338dc